Cogmind - Beta 16 *** ADVENTURER MODE // 2026.01.28 @ 21:19:55 Player: Armok Result: Destroyed by D-53 Grenadier with Mini Grenade Launcher Performance ------------- Evolutions (0) 0 Regions Visited (2) 400 Robots Destroyed (18) 90 Value Destroyed (186) 186 Prototype IDs (0) 0 Alien Tech Used (0) 0 Bonus (0) 0 TOTAL SCORE: 676 Bonus ------- None Cogmind --------- Core Integrity 0/250 Matter 291/300 Energy 100/100 System Corruption 0% Temperature Cool (0) Movement Core (1450) Ox28 Location -10/Mines Parts ------- > --- POWER (1) -------- (None) > --- PROPULSION (2) --- (None) > --- UTILITY (2) ------ Heat Sink Huge Storage Unit > --- WEAPON (2) ------- Hammer Makeshift Spear > --- INVENTORY (25) --- Light Ion Engine Wheel Wheel Small Storage Unit Medium Matter Pod (100) Structural Scanner Experimental Sensor Array Terrain Scan Processor Peak State ------------ > --- POWER ------------ Light Ion Engine > --- PROPULSION ------- Wheel Wheel > --- UTILITY ---------- Heat Sink Huge Storage Unit > --- WEAPON ----------- Grenade Launcher Makeshift Spear > --- INVENTORY -------- Light Ion Engine Wheel Wheel Small Storage Unit Medium Matter Pod Structural Scanner Experimental Sensor Array Terrain Scan Processor Hammer [Rating: 11] Favorites ----------- Power Light Ion Engine Engine Light Ion Engine Propulsion Wheel Wheel Wheel Utility Heat Sink Device Heat Sink Storage Huge Storage Unit Weapon Beam Cannon Energy Gun Medium Laser Energy Cannon Beam Cannon Launcher Grenade Launcher Impact Weapon Hammer Piercing Weapon Makeshift Spear Build | -11 -10 -10 ------- Run | Yrd Mat Min Slots Evolved . | . . . Power . | . . . Propulsion . | . . . Utility . | . . . Weapon . | . . . Parts Attached 26 | 8 9 9 Power 4 | 1 3 . Engine 4 | 1 3 . Core . | . . . Reactor . | . . . Propulsion 8 | 3 . 5 Treads . | . . . Leg . | . . . Wheel 8 | 3 . 5 Hover . | . . . Flight . | . . . Utility 6 | 2 4 . Device 3 | . 3 . Storage 3 | 2 1 . Processor . | . . . Hackware . | . . . Protection . | . . . Artifact . | . . . Weapon 8 | 2 2 4 Energy Gun 3 | 2 . 1 Energy Cannon 2 | . 2 . Ballistic Gun . | . . . Ballistic Cannon . | . . . Launcher 1 | . . 1 Special Weapon . | . . . Impact Weapon 1 | . . 1 Slashing Weapon . | . . . Piercing Weapon 1 | . . 1 Special Melee Weapon . | . . . Unidentified Prototypes . | . . . Parts Lost 10 | . . 10 Power 1 | . . 1 Propulsion 4 | . . 4 Utility 1 | . . 1 Weapon 4 | . . 4 Highest Loss Streak 4 | . . 4 To Critical Strikes . | . . . Average Backups 8 | 4 9 9 Power 1 | 1 1 1 Propulsion 1 | 1 2 1 Utility 3 | . 2 4 Weapon 2 | 1 3 2 Tool/Special . | . . . Unused Backups 11 | 1 3 7 Power 2 | . 1 1 Propulsion 2 | . . 2 Utility 5 | 1 . 4 Weapon 2 | . 2 . Tool/Special . | . . . Average Slot Usage (%) 99 | . 99 99 Engine 13 | . 13 14 Wheel 27 | . 28 27 Device 13 | . 12 13 Storage 14 | . 15 14 Energy Gun 1 | . 3 . Energy Cannon 17 | . 24 14 Launcher 4 | . . 5 Impact Weapon 3 | . . 4 Piercing Weapon 1 | . . 2 Peak Build Rating 11 | 7 8 11 Average Rating 8 | 5 7 8 On Entrance 5 | . 7 8 Avg Prop Armor Cover (%) . | . . . Naked Turns . | . . . Heaviest Build 90 | 14 90 90 Greatest Support 26 | 26 20 20 Greatest Overweight (x) 8 | . 8 8 Average Overweight (x) 2 | . 2 4 Largest Inventory Capacity 25 | 8 25 25 Average Capacity 21 | 7 19 25 Most Carried 12 | 8 12 12 Average Carried 8 | 5 9 9 Final Capacity 25 | 8 25 25 Final Carried 11 | 7 11 8 Class Distribution -------------------- 100% | Mutant Dominant Class ---------------- Mutant | -10/Materials Mutant | -10/Mines Resources | -11 -10 -10 ----------- Run | Yrd Mat Min Matter Collected 764 | 365 106 293 Remotely . | . . . Salvage Created 524 | 194 121 209 Parts 31 | 10 13 8 Haulers Intercepted . | . . . Recyclers Shooed . | . . . Parts Field Recycled . | . . . Retrieved Matter . | . . . Parts Self-Destructed . | . . . Prevented . | . . . Parts Restored . | . . . Kills | -11 -10 -10 ------- Run | Yrd Mat Min Combat Hostiles Destroyed 26 | . 5 21 Melee 4 | . . 4 Guns 2 | . . 2 Cannons 13 | . 5 8 AOE 7 | . . 7 Classes Destroyed 6 | 3 2 1 Worker 1 | 1 . . Tunneler 5 | 4 1 . Recycler 1 | 1 . . Swarmer 10 | . 4 6 Grunt 1 | . 1 . Assembled 15 | . . 15 Best Kill Streak 6 | 6 4 6 Combat Bots Only 6 | . 4 6 Max Kills in Single Turn 2 | 1 1 2 Gunslinging . | . . . Exploded 2 | . . 2 Melee 1 | . . 1 Uniques/NPCs Destroyed . | . . . Combat | -11 -10 -10 -------- Run | Yrd Mat Min Hostile Shots Fired 101 | . 31 70 Missed 25 | . 8 17 Hits 76 | . 23 53 Melee 9 | . . 9 Projectile 67 | . 23 44 AOE 8 | . . 8 Critical Strikes 3 | . 1 2 Damage Taken 964 | . 147 817 Core 251 | . 37 214 Absorbed by Shields . | . . . Ignored by Resistances 287 | . 48 239 Core Remaining (%) 100 | 100 . . Volleys Fired 63 | 11 12 40 Largest 2 | 2 2 2 Hottest 120 | 100 120 120 Shots Fired 104 | 22 24 58 Gun 30 | 22 . 8 Cannon 62 | . 24 38 Launcher 12 | . . 12 Special . | . . . Kinetic . | . . . Thermal 92 | 22 24 46 Explosive 12 | . . 12 Electromagnetic . | . . . Robot Hit Streak 20 | 13 3 20 Robot Miss Streak 3 | 2 3 1 Penetration Max . | . . . Secondary Targets . | . . . Shots Hit Robots 81 | 17 10 54 Core Hits 46 | 7 6 33 Critical Kills . | . . . Critical Parts Destroyed 1 | . . 1 Critical Strikes 6 | 4 . 2 Burn 5 | 4 . 1 Smash 1 | . . 1 Melee Attacks 11 | . . 11 Impact 7 | . . 7 Slashing . | . . . Piercing 4 | . . 4 Sneak Attacks . | . . . Combat Hostiles . | . . . Follow-up Attacks . | . . . Damage Inflicted 1696 | 211 209 1276 Guns 310 | 211 . 99 Cannons 789 | . 209 580 Explosions 400 | . . 400 Melee 197 | . . 197 Ramming . | . . . Kinetic . | . . . Thermal 1099 | 211 209 679 Explosive 400 | . . 400 Electromagnetic . | . . . Impact 135 | . . 135 Slashing . | . . . Piercing 62 | . . 62 Highest Corruption . | . . . Average Corruption . | . . . Corruption Purged . | . . . Corruption Blocked . | . . . Overload Shots . | . . . Overflow Damage 142 | . 5 137 Projectiles 31 | . 5 26 Explosions 54 | . . 54 Melee 57 | . . 57 Knockbacks . | . . . Impact . | . . . Kinetic . | . . . Secondary . | . . . Self-Inflicted Damage 50 | . . 50 Shots 3 | . . 3 Rammed . | . . . Targets Rammed . | . . . Kicked . | . . . Crushed . | . . . Highest Temperature 369 | 156 150 369 Average Temperature 114 | 56 61 171 Received Heat Transfer 232 | . 12 220 Effects 5 | . . 5 Energy Bleed 1 | . . 1 Matter Decay 1 | . . 1 Short Circuit 2 | . . 2 Damage (minor) 1 | . . 1 Siege Activations . | . . . Martial Activations . | . . . Shielding Activations . | . . . Robots Disrupted . | . . . Combat Hostiles . | . . . Robots Corrupted . | . . . Combat Hostiles . | . . . Parts Fried . | . . . Impact Corruptions 3 | . . 3 Robots Melted . | . . . Combat Hostiles . | . . . Parts Melted 4 | 4 . . Heat Transferred 2960 | 925 444 1591 Parts Sabotaged . | . . . Parts Stolen . | . . . Parts Stripped . | . . . Power Chain Reactions . | . . . Alert | -11 -10 -10 ------- Run | Yrd Mat Min Maximum Alert Level . | . . . Low Security (%) 100 | 100 100 100 Level 1 . | . . . Level 2 . | . . . Level 3 . | . . . Level 4 . | . . . Level 5 . | . . . High Security . | . . . Max Security . | . . . Peak Influence 101 | 10 101 96 Initial 26 | . . 26 Average 18 | 2 21 21 Influence Increases 376 | 30 155 191 Destroy 0b10 Robot/C 220 | . 100 120 Destroy 0b10 Robot/NC 35 | 30 5 . Destroy Leader 30 | . 10 20 Successful Hack 14 | . 14 . Disable Machine 9 | . 9 . Destroy Structure 53 | . 2 51 Lose Combat Pursuer 15 | . 15 . Influence Decreases 376 | 30 74 272 Entered New Map 55 | . . 55 Time Decay 295 | 30 74 191 Lost Part 26 | . . 26 Squads Dispatched 1 | . 1 . Investigation 1 | . 1 . Extermination . | . . . Reinforcement . | . . . Assault . | . . . Garrison . | . . . Intercept . | . . . Searches Triggered . | . . . Construction Impeded . | . . . Haulers Reinforced . | . . . Active Scanning Responses . | . . . Cargo Convoy Interrupts . | . . . Stealth | -11 -10 -10 --------- Run | Yrd Mat Min Distress Signals 3 | . 3 . Communications Jammed . | . . . Distress Signals . | . . . Times Spotted 39 | . 11 28 Peak Tracking Total 17 | . 5 17 Tactical Retreats 7 | . 1 6 Traps | -11 -10 -10 ------- Run | Yrd Mat Min Traps Triggered 2 | . 2 . Indirectly . | . . . Trap Hack Attempts . | . . . Triggered . | . . . Disarmed . | . . . Reprogrammed . | . . . Reused . | . . . Traps Extracted . | . . . Installed . | . . . Triggered . | . . . Machines | -11 -10 -10 ---------- Run | Yrd Mat Min Machines Disabled 1 | . 1 . Max in Single Turn 1 | . 1 . Machines Repaired . | . . . Machines Dismantled . | . . . Machines Sabotaged . | . . . Overloaded Fab Kills . | . . . Hacking | -11 -10 -10 --------- Run | Yrd Mat Min Machines Accessed 3 | . 3 . Terminals 3 | . 3 . Fabricators . | . . . Repair Stations . | . . . Recycling Units . | . . . Scanalyzers . | . . . Garrison Access . | . . . Total Hacks 6 | . 6 . Successful 1 | . 1 . Failed 5 | . 5 . Catastrophic 1 | . 1 . Database Lockouts . | . . . Manual . | . . . Terminals 6 | . 6 . Fabricators . | . . . Repair Stations . | . . . Recycling Units . | . . . Scanalyzers . | . . . Garrison Access . | . . . Terminal Hacks 1 | . 1 . Branch Access Points 1 | . 1 . Fabricator Hacks . | . . . Repair Station Hacks . | . . . Recycling Unit Hacks . | . . . Scanalyzer . | . . . Garrison Access Hacks . | . . . Unauthorized Hacks . | . . . Terminals . | . . . Fabricators . | . . . Repair Stations . | . . . Recycling Units . | . . . Scanalyzers . | . . . Garrison Access . | . . . Data Cores Recovered . | . . . Used . | . . . Hacking Detections 3 | . 3 . Full Trace Events 1 | . 1 . Feedback Events . | . . . Feedback Blocked . | . . . Robot Schematics Acquired . | . . . Robots Built . | . . . Authchips . | . . . Time . | . . . Total Robot Build Rating . | . . . Part Schematics Acquired . | . . . Parts Built . | . . . Authchips . | . . . Time . | . . . Total Part Build Rating . | . . . Part Studies Acquired . | . . . Parts Repaired . | . . . Time . | . . . Parts Recycled . | . . . Recycled Matter . | . . . Retrieved Matter . | . . . Retrieved Components . | . . . Parts Scanalyzed . | . . . Part Schematics Acquired . | . . . Parts Damaged . | . . . Bothacking | -11 -10 -10 ------------ Run | Yrd Mat Min Used RIF Installer . | . . . Robots Hacked . | . . . Non-combat . | . . . Combat . | . . . Robot Hacks Applied . | . . . Relay Couplers Released . | . . . Fabnet Peak Effective % . | . . . Robots Rewired . | . . . Allies Hacked . | . . . Hacks Repelled . | . . . Allies | -11 -10 -10 -------- Run | Yrd Mat Min Total Allies . | . . . Largest Group . | . . . Highest-Rated Group . | . . . Highest-Rated Ally . | . . . Total Orders . | . . . Ally Attacks . | . . . Total Damage . | . . . Kills . | . . . Allies Corrupted . | . . . Allies Melted . | . . . Intel | -11 -10 -10 ------- Run | Yrd Mat Min Active Infowar (turns) 41 | . 41 . Seismic 41 | . 41 . Robot Analysis Total . | . . . Derelict Logs Recovered 2 | . . 2 Drone Launches . | . . . Drone Recoveries . | . . . Exploration | -11 -10 -10 ------------- Run | Yrd Mat Min Turns Passed 1228 | 149 286 793 Spaces Moved 745 | 115 187 443 Core 14 | 14 . . Treads . | . . . Legs . | . . . Wheels 731 | 101 187 443 Hover . | . . . Flight . | . . . Fastest Speed 50 | 50 80 140 Average Speed 123 | 79 112 140 Slowest Speed 200 | 90 200 200 Overloaded Moves . | . . . Propulsion Burnouts . | . . . Robots Hopped . | . . . Potential Cave-ins . | . . . Cave-ins Triggered . | . . . Exploration Rate (%) 36 | 6 33 70 Regions Visited 2 Branch Regions 1 Pre-discovered Areas . | . . . Known Exits Taken 1 | . 1 . Unknown Exits Taken 1 | 1 . . Scrap Searched 1 | . . 1 Spaces Dug . | . . . Terrain Destroyed 74 | . . 74 Melee . | . . . Projectile . | . . . AOE 74 | . . 74 Terrain Rammed . | . . . Walls Destroyed . | . . . Machines Disabled . | . . . Actions | -11 -10 -10 --------- Run | Yrd Mat Min Total 931 | 151 239 541 Wait 23 | . 8 15 Move 743 | 114 186 443 Hop . | . . . Pick Up 42 | 16 15 11 Fast Attach . | . . . Attach 19 | 7 4 8 Detach . | . . . Swap 15 | 1 7 7 Drop 15 | 2 7 6 Fire 63 | 11 12 40 Melee 11 | . . 11 Ram . | . . . Kick . | . . . Crush . | . . . Escape Stasis . | . . . Rewire . | . . . Trap . | . . . Miscellaneous . | . . . Route ------- -11/Scrapyard -10/Materials (discovered 2 exits: *Min x2) -10/Mines (discovered 2 exits: [*Mat x2]) History --------- Turn | Location | Event 31 | -11/Scrapyard | Discovered new exit (range 14) 150 | -11/Scrapyard | Entered Materials 207 | -10/Materials | Identified exit to Mines 306 | -10/Materials | Build established: Mutant 436 | -10/Materials | Entered Mines 479 | -10/Mines | Found a damaged Exp. Sensor Array with a note attached 482 | -10/Mines | Found Prototype Device 529 | -10/Mines | Learned location of 1 exit from Materials 652 | -10/Mines | Discovered new exit (range 6) 757 | -10/Mines | Assembled infested the area 831 | -10/Mines | Core integrity fell below 50% 850 | -10/Mines | Lost 3 parts (2n1w) 930 | -10/Mines | Lost 3 parts (1u2w) 1023 | -10/Mines | Discovered new exit (range 16) 1071 | -10/Mines | A weapon hastily lodged in a ceiling crevice suddenly fell to the ground 1226 | -10/Mines | Core integrity fell below 20% 1229 | -10/Mines | Destroyed by D-53 Grenadier with Mini Grenade Launcher Last Messages --------------- 01094_ Found Heat Sink. 01094_ Found Utility Shielding. 01094_ Found Hover Unit. 01094_ Found 52 Matter. 01095_ Acquired 38 matter. 01096_ Acquired derelict log, extracted data. Data stored: Mines entrances (x2). 01103_ S-10 Pest destroyed. 01118_ Destroyed Flight Unit. 01125_ S-10 Pest destroyed. 01127_ Acquired 10 matter. 01144_ Acquired 3 matter. 01162_ The unstable cave ceiling collapses. 01162_ Acquired 8 matter. 01223_ The unstable cave ceiling collapses. 01223_ Grenade Launcher destroyed. 01224_ The unstable cave ceiling collapses. 01225_ Lgt. Ion Engine destroyed. 01227_ Wheel destroyed. 01229_ The unstable cave ceiling collapses. Map ----- +----------------------------------------------------+ | ???????# #???# #???????????# ##????### ## #? | | ???????# #####*#???????????# ##???# #? | | ???????# |=!#??????????## ##### ## | | ???????####### #??????????# """ #### # | | ????????????## ##?????????# """ #?## | | ????????????# #?????????# """ ######### | | ???########## ###???????## #???# | | ???#% * [# ## #????????##### #???# | | ???#%####%# ##???????????### #???# ## | | ??## #??# ####????????### #???# ### | | ?## ##?### !########## #???# #?## | | ?# ##?## # # = |== =|%* ###???# ##### # | | ## #?# |%# ####### #?????# ### | | # ### # ### !!## #?????# #?????# #?? | | =## # *## #????? #?????###### #?? | | ####*#### #=## #????? ??????????# #?? | | ###??#%??########%## #?????#